bitfinex/quotes_SOLUSD_20230404
["timestamp","ask_amount","ask_price","bid_price","bid_amount"]
[1680607590760,116.6109,20.874,20.857,17.0]
[1680607591371,116.6109,20.874,20.856,17.0]
[1680607592965,116.6109,20.874,20.855,17.0]
[1680607593176,116.6109,20.874,20.855,24.24624739]
[1680607593764,116.6109,20.874,20.856,20.0]
[1680607593972,116.6109,20.874,20.857,17.0]
[1680607596156,116.6109,20.874,20.856,20.0]
[1680607596358,116.6109,20.874,20.857,17.0]
[1680607596867,116.6109,20.874,20.851,20.0]
[1680607597069,20.0,20.872,20.851,20.0]
[1680607597247,17.0,20.871,20.85,20.0]
[1680607597773,17.0,20.871,20.848,20.0]
[1680607598071,20.0,20.87,20.85,7.24624739]
[1680607598366,20.0,20.87,20.846,33.82629879]
[1680607598367,37.0,20.869,20.846,33.82629879]
[1680607598685,20.0,20.868,20.846,33.82629879]
[1680607598974,37.0,20.867,20.846,33.82629879]
[1680607599268,20.0,20.866,20.847,146.85074739]
[1680607599564,37.0,20.865,20.847,139.6045]
[1680607599766,37.0,20.865,20.848,17.0]
[1680607600147,20.0,20.864,20.848,17.0]
[1680607600449,130.0143,20.864,20.848,17.0]
[1680607600765,110.0143,20.864,20.848,17.0]
[1680607601163,20.0,20.863,20.847,20.0]
[1680607601365,17.0,20.862,20.847,20.0]
[1680607602662,110.0143,20.864,20.847,20.0]
[1680607603166,110.0143,20.864,20.848,17.0]
[1680607604154,110.0143,20.864,20.848,24.24624739]
[1680607604651,20.0,20.863,20.848,24.24624739]
[1680607605769,110.0143,20.864,20.848,24.24624739]
[1680607605971,20.0,20.863,20.848,24.24624739]
[1680607606180,110.0143,20.864,20.848,24.24624739]
[1680607608973,110.0143,20.864,20.848,43.43224739]
[1680607609878,110.0143,20.864,20.85,40.63]
[1680607610075,110.0143,20.864,20.852,19.182]
[1680607610272,20.0,20.865,20.852,19.182]
[1680607610464,20.0,20.866,20.853,24.24624739]
[1680607611972,111.4926,20.867,20.853,24.24624739]
[1680607612171,129.4462,20.876,20.856,19.178]
[1680607612365,129.4462,20.876,20.857,17.0]
[1680607612556,129.4462,20.876,20.857,24.24624739]
[1680607612757,129.4462,20.876,20.858,7.24624739]
[1680607613080,129.4462,20.876,20.859,17.0]
[1680607613555,20.0,20.875,20.859,17.0]
[1680607613976,20.0,20.874,20.859,17.0]
[1680607614161,20.0,20.875,20.859,17.0]
[1680607617981,20.0,20.874,20.859,17.0]
[1680607618384,20.0,20.874,20.857,17.0]
[1680607618588,20.0,20.875,20.857,17.0]
[1680607619085,20.0,20.875,20.858,7.24624739]
[1680607619269,20.0,20.874,20.859,17.0]
[1680607619470,20.0,20.874,20.858,7.24624739]
[1680607619669,17.0,20.873,20.858,7.24624739]
[1680607619866,20.0,20.872,20.856,110.5978]
[1680607620076,17.0,20.871,20.853,61.05656006]
[1680607620286,17.0,20.871,20.854,20.0]
[1680607620867,20.0,20.87,20.854,20.0]
[1680607621186,17.0,20.869,20.854,20.0]
[1680607621364,20.0,20.868,20.854,20.0]
[1680607621562,17.0,20.867,20.854,20.0]
[1680607624782,17.0,20.867,20.854,27.24624739]
[1680607625377,20.0,20.87,20.854,46.42624739]
[1680607627086,20.0,20.868,20.854,46.42624739]
[1680607629491,20.0,20.868,20.848,67.93445077]
[1680607629492,37.0,20.867,20.848,87.11945077]
[1680607629687,20.0,20.866,20.848,87.11945077]
[1680607629890,37.0,20.865,20.848,87.11945077]
[1680607630187,37.0,20.865,20.848,72.99531267]
[1680607630389,37.0,20.865,20.848,80.24156006]
[1680607631795,20.0,20.864,20.848,26.43124739]
[1680607631979,17.0,20.863,20.848,7.24624739]
[1680607635398,132.926,20.864,20.848,7.24624739]
[1680607635584,112.926,20.864,20.849,17.0]
[1680607635892,112.926,20.864,20.85,20.0]
[1680607636098,112.926,20.864,20.851,17.0]
[1680607636300,112.926,20.864,20.851,24.24624739]
[1680607637102,112.926,20.864,20.851,7.24624739]
[1680607637405,112.926,20.864,20.848,19.186]
[1680607637579,20.0,20.863,20.849,17.0]
[1680607638395,20.0,20.863,20.848,19.186]
[1680607639286,20.0,20.863,20.849,7.24624739]
[1680607641802,17.0,20.862,20.843,71.98920156]
[1680607642003,17.0,20.862,20.846,7.24624739]
[1680607642590,20.0,20.861,20.846,7.24624739]
[1680607643004,20.0,20.861,20.843,71.98920156]
[1680607643602,17.0,20.86,20.843,71.98920156]
[1680607643804,17.0,20.86,20.843,52.79920156]
[1680607644308,20.0,20.861,20.843,52.79920156]
[1680607644893,17.0,20.86,20.843,52.79920156]
[1680607645292,17.0,20.86,20.845,120.81954739]
[1680607645601,20.0,20.859,20.845,120.81954739]
[1680607645801,17.0,20.858,20.845,120.81954739]
[1680607648316,20.0,20.857,20.845,120.81954739]
[1680607648810,17.0,20.856,20.842,117.1517]
[1680607649011,20.0,20.855,20.839,24.246247]
[1680607649312,37.0,20.854,20.839,24.246247]
[1680607650497,20.0,20.854,20.839,24.246247]
[1680607651517,20.0,20.852,20.839,24.246247]
[1680607651815,20.0,20.852,20.839,31.49249439]
[1680607652199,17.0,20.851,20.839,31.49249439]
[1680607652423,17.0,20.851,20.839,24.246247]
[1680607652996,20.0,20.852,20.839,24.246247]
[1680607653700,17.0,20.851,20.839,24.246247]
[1680607653910,20.0,20.85,20.839,24.246247]
[1680607654816,17.0,20.849,20.839,24.246247]
[1680607655818,20.0,20.85,20.839,24.246247]
[1680607656310,17.0,20.849,20.839,24.246247]
[1680607656651,20.0,20.848,20.839,24.246247]
[1680607658404,17.0,20.847,20.839,24.246247]
[1680607659310,20.0,20.848,20.839,24.246247]
[1680607659717,17.0,20.847,20.839,24.246247]
[1680607659916,20.0,20.846,20.839,24.246247]
[1680607660220,17.0,20.845,20.839,24.246247]
[1680607661012,20.0,20.844,20.839,24.246247]
[1680607661219,17.0,20.843,20.839,24.246247]
[1680607661422,20.0,20.842,20.839,24.246247]
[1680607662114,20.0,20.842,20.826,20.0]
[1680607662617,20.0,20.842,20.826,7.24624739]
[1680607663215,20.0,20.842,20.825,33.54300043]
[1680607663417,20.0,20.84,20.825,33.54300043]
[1680607663932,20.0,20.84,20.825,19.206]
[1680607664221,20.0,20.84,20.826,7.24624739]
[1680607664428,20.0,20.844,20.826,7.24624739]
[1680607664736,40.86,20.86,20.834,19.198]
[1680607664912,110.8438,20.858,20.838,19.195]
[1680607665112,110.8438,20.858,20.839,17.0]
[1680607665319,110.8438,20.858,20.841,19.192]
[1680607665516,110.8438,20.858,20.842,17.0]
[1680607665717,117.5141,20.867,20.842,17.0]
[1680607666020,117.5141,20.867,20.843,27.24624739]
[1680607666413,20.0,20.866,20.844,20.0]
[1680607666728,20.0,20.866,20.845,20.0]
[1680607666912,20.0,20.866,20.845,137.6845]
[1680607667115,17.0,20.865,20.845,137.6845]
[1680607667315,20.0,20.866,20.846,20.0]
[1680607667524,20.0,20.866,20.845,156.8735]
[1680607668517,17.0,20.865,20.845,156.8735]
[1680607668916,20.0,20.864,20.845,156.8735]
[1680607669143,17.0,20.863,20.845,156.8735]
[1680607669327,20.0,20.862,20.845,156.8735]
[1680607669627,17.0,20.861,20.845,156.8735]
[1680607670027,17.0,20.863,20.845,156.8735]
[1680607672835,17.0,20.865,20.845,156.8735]
[1680607673417,20.0,20.873,20.85,41.03]
[1680607673615,19.93252301,20.868,20.851,17.0]
[1680607673821,19.93252301,20.868,20.851,131.8443]
[1680607674229,20.0,20.873,20.851,131.8443]
[1680607675941,20.0,20.872,20.851,131.8443]
[1680607676321,17.0,20.871,20.851,114.8443]
[1680607676541,20.0,20.87,20.851,114.8443]
[1680607676724,17.0,20.869,20.851,114.8443]
[1680607676924,20.0,20.868,20.851,114.8443]
[1680607677118,17.0,20.867,20.851,114.8443]
[1680607677335,40.0,20.866,20.851,114.8443]
[1680607677527,17.0,20.865,20.851,114.8443]
[1680607677726,20.0,20.866,20.851,114.8443]
[1680607678036,20.0,20.872,20.852,19.182]
[1680607678829,7.5,20.872,20.853,17.0]
[1680607679029,116.5828,20.873,20.853,17.0]
[1680607679227,116.5828,20.873,20.854,20.0]
[1680607679441,116.5828,20.873,20.855,17.0]
[1680607679926,20.0,20.872,20.853,17.0]
[1680607681025,20.0,20.871,20.853,17.0]
[1680607682532,17.0,20.87,20.853,17.0]
[1680607682734,20.0,20.869,20.853,17.0]
[1680607684241,20.0,20.868,20.853,17.0]
[1680607684445,20.0,20.868,20.851,17.0]
[1680607684651,20.0,20.869,20.851,17.0]
[1680607685228,20.0,20.869,20.852,20.0]
[1680607685454,20.0,20.869,20.853,17.0]
[1680607686343,20.0,20.875,20.853,36.181]
[1680607686645,20.0,20.874,20.854,20.0]
[1680607686942,20.0,20.873,20.855,17.0]
[1680607688022,20.0,20.873,20.854,115.263]
[1680607688224,37.0,20.872,20.843,19.19]
[1680607688445,20.0,20.871,20.846,115.263]
[1680607688628,17.0,20.87,20.846,115.263]
[1680607688828,20.0,20.869,20.846,115.263]
[1680607689029,20.0,20.867,20.846,115.263]
[1680607689229,20.0,20.866,20.846,115.263]
[1680607689543,17.0,20.865,20.847,7.24624739]
[1680607691227,20.0,20.866,20.85,41.03]
[1680607691431,20.0,20.869,20.851,17.0]
[1680607691644,20.0,20.869,20.851,43.42824739]
[1680607691846,20.0,20.87,20.852,7.24624739]
[1680607692040,20.0,20.87,20.853,17.0]
[1680607693046,19.186841,20.869,20.853,17.0]
[1680607693231,20.0,20.868,20.853,17.0]
[1680607695845,19.186841,20.869,20.853,24.24624739]
[1680607696035,19.186841,20.869,20.854,20.0]
[1680607696250,19.186841,20.869,20.855,17.0]
[1680607697448,20.0,20.868,20.847,39.187]
[1680607697638,17.0,20.867,20.847,39.187]
[1680607697833,20.0,20.866,20.847,39.187]
[1680607698734,20.0,20.866,20.85,48.27624739]
[1680607698935,20.0,20.866,20.851,17.0]
[1680607699939,20.0,20.866,20.851,24.24624739]
[1680607700252,20.0,20.868,20.851,24.24624739]
[1680607703556,20.0,20.867,20.851,24.24624739]
[1680607703791,20.0,20.868,20.851,7.24624739]
[1680607703792,37.0,20.866,20.851,7.24624739]
[1680607703944,20.0,20.868,20.851,7.24624739]
[1680607704145,20.0,20.866,20.851,7.24624739]
[1680607704338,40.0,20.866,20.851,7.24624739]
[1680607704541,20.0,20.866,20.851,7.24624739]
[1680607704741,40.0,20.866,20.851,7.24624739]
[1680607704953,20.0,20.866,20.851,7.24624739]
[1680607705457,17.0,20.865,20.851,7.24624739]
[1680607705762,17.0,20.865,20.845,117.6845]
[1680607706058,20.0,20.864,20.845,117.6845]
[1680607706349,17.0,20.863,20.845,117.6845]
[1680607709153,17.0,20.863,20.847,17.0]
[1680607709355,17.0,20.863,20.845,117.6845]
[1680607715850,17.0,20.862,20.845,117.6845]
[1680607716048,17.0,20.863,20.845,117.6845]
[1680607719164,40.9,20.86,20.838,55.85976267]
[1680607719355,149.5318,20.859,20.835,116.6513]
[1680607719670,20.0,20.858,20.835,116.6513]
[1680607719841,17.0,20.857,20.835,116.6513]
[1680607720046,20.0,20.856,20.835,116.6513]
[1680607720351,17.0,20.855,20.835,116.6513]
[1680607720858,20.0,20.854,20.835,116.6513]
[1680607721258,17.0,20.853,20.835,116.6513]
[1680607721562,20.0,20.852,20.835,116.6513]
[1680607721867,17.0,20.851,20.835,116.6513]
[1680607722255,17.0,20.853,20.835,116.6513]
[1680607723267,17.0,20.853,20.836,20.0]
[1680607724347,17.0,20.853,20.835,116.6513]
[1680607725643,20.0,20.854,20.835,116.6513]
[1680607725850,130.5789,20.856,20.837,19.195]
[1680607726064,130.5789,20.856,20.838,17.0]
[1680607726361,130.5789,20.856,20.838,24.24624739]
[1680607726574,130.5789,20.856,20.839,7.24624739]
[1680607726771,130.5789,20.856,20.84,37.0]
[1680607727062,130.5789,20.856,20.839,7.24624739]
[1680607727443,17.0,20.855,20.839,7.24624739]
[1680607727647,130.5789,20.856,20.839,7.24624739]
[1680607727846,130.5789,20.856,20.84,17.0]
[1680607729276,113.3548,20.859,20.841,7.24624739]
[1680607729565,53.56463223,20.866,20.843,20.0]
[1680607729566,34.39463223,20.866,20.843,20.0]
[1680607729766,34.39463223,20.866,20.844,20.0]
[1680607729968,34.39463223,20.866,20.844,44.24624739]
[1680607730152,34.39463223,20.866,20.845,7.24624739]
[1680607730472,34.39463223,20.866,20.846,17.0]
[1680607730668,20.0,20.865,20.847,20.0]
[1680607730853,20.0,20.865,20.848,17.0]
[1680607733573,20.0,20.865,20.85,41.03]
[1680607733861,20.0,20.865,20.851,17.0]
[1680607734774,20.0,20.865,20.85,41.03]
[1680607735067,20.0,20.865,20.852,17.0]
[1680607735270,20.0,20.865,20.851,17.0]
[1680607735771,20.0,20.865,20.85,41.03]
[1680607736571,20.0,20.864,20.85,41.03]
[1680607736957,20.0,20.865,20.85,41.03]
[1680607738578,20.0,20.864,20.845,117.07484739]
[1680607739274,20.0,20.864,20.845,109.8286]
[1680607739776,20.0,20.864,20.846,0.6773488]
[1680607739959,20.0,20.864,20.846,17.6773488]
[1680607740361,20.0,20.864,20.847,17.0]
[1680607740661,20.0,20.864,20.846,20.6773488]
[1680607740967,20.0,20.864,20.847,17.0]
[1680607741470,20.0,20.864,20.846,17.0]
[1680607741861,20.0,20.864,20.845,111.2765]
[1680607742184,20.0,20.862,20.845,111.2765]
[1680607743863,17.0,20.863,20.846,17.0]
[1680607744379,20.0,20.864,20.846,17.0]
[1680607748166,17.0,20.863,20.845,111.2765]
[1680607748367,20.0,20.862,20.845,111.2765]
[1680607749365,17.0,20.863,20.845,111.2765]
[1680607749569,20.0,20.865,20.846,17.0]
[1680607751181,20.0,20.865,20.846,24.24624739]
[1680607752478,20.0,20.864,20.846,24.24624739]
[1680607752668,20.0,20.864,20.847,20.0]
[1680607752887,20.0,20.864,20.848,17.0]
[1680607753579,20.0,20.864,20.847,17.0]
[1680607753970,20.0,20.865,20.847,17.0]
[1680607755471,38.381713,20.864,20.847,17.0]
[1680607756082,38.381713,20.864,20.85,27.37]
[1680607756387,38.381713,20.864,20.851,17.0]
[1680607758178,38.381713,20.864,20.85,27.37]
[1680607758478,37.0,20.863,20.845,111.2765]
[1680607758686,38.381713,20.864,20.845,111.2765]
[1680607759202,38.381713,20.864,20.846,20.0]
[1680607759681,38.381713,20.864,20.845,111.2765]
[1680607759883,38.381713,20.864,20.846,20.6773488]
[1680607760089,38.381713,20.864,20.847,17.0]
[1680607761189,38.381713,20.864,20.848,20.0]
[1680607761390,38.381713,20.864,20.849,17.0]
[1680607761986,38.381713,20.864,20.85,27.28]
[1680607762217,38.381713,20.864,20.851,17.0]
[1680607764207,20.0,20.865,20.851,17.0]
[1680607764386,20.0,20.866,20.851,17.0]
[1680607770597,401.87055698,20.882,20.852,20.0]
[1680607770598,52.32098731,20.874,20.852,20.0]
[1680607770917,52.32098731,20.874,20.853,17.0]
[1680607771207,20.0,20.875,20.854,20.0]
[1680607771391,20.0,20.875,20.855,17.0]
[1680607771901,20.0,20.875,20.856,116.2275]
[1680607772088,20.0,20.875,20.857,17.0]
[1680607772495,20.0,20.875,20.856,116.2275]
[1680607773389,27.28,20.869,20.856,116.2275]
[1680607773892,27.28,20.869,20.857,17.0]
[1680607775620,27.28,20.869,20.858,20.0]
[1680607775825,27.28,20.869,20.859,17.0]
[1680607776192,27.28,20.869,20.86,20.0]
[1680607776505,27.28,20.869,20.861,17.0]
[1680607777214,27.28,20.869,20.862,20.0]
[1680607777397,27.28,20.869,20.863,17.0]
[1680607779022,27.28,20.869,20.864,20.0]
[1680607780094,27.28,20.869,20.863,17.0]
[1680607780292,27.28,20.869,20.86,47.28]
[1680607780618,27.28,20.869,20.861,17.0]
[1680607781103,27.28,20.869,20.862,20.0]
[1680607782396,27.28,20.869,20.861,17.0]
[1680607783509,110.4338,20.875,20.861,17.0]
[1680607784096,110.4338,20.875,20.862,20.0]
[1680607784320,110.4338,20.875,20.861,17.0]
[1680607784498,110.4338,20.875,20.86,27.28]
[1680607784700,110.4338,20.875,20.861,17.0]
[1680607785716,113.5981,20.878,20.861,17.0]
[1680607786046,113.5981,20.878,20.862,40.0]
[1680607786212,113.5981,20.878,20.863,17.0]
[1680607786716,113.5981,20.878,20.864,20.0]
[1680607786895,113.5981,20.878,20.866,20.0]
[1680607787097,113.5981,20.878,20.867,17.0]
[1680607788120,113.5981,20.878,20.864,20.0]
[1680607788298,113.5981,20.878,20.865,17.0]
[1680607788522,113.5981,20.878,20.864,17.0]
[1680607789217,113.5981,20.878,20.857,19.178]
[1680607789520,37.0,20.877,20.86,41.4936165]
[1680607789718,20.0,20.876,20.86,41.4936165]
[1680607790019,20.0,20.875,20.861,20.0]
[1680607790226,20.0,20.875,20.86,41.4936165]
[1680607790517,20.0,20.877,20.86,41.4936165]
[1680607790815,20.0,20.877,20.861,17.0]
[1680607791022,20.0,20.876,20.861,17.0]
[1680607791203,20.0,20.875,20.861,17.0]
[1680607791809,20.0,20.876,20.861,17.0]
[1680607792504,40.0,20.877,20.861,17.0]
[1680607793606,20.0,20.877,20.861,17.0]
[1680607794110,20.0,20.877,20.862,20.0]
[1680607794331,20.0,20.877,20.863,17.0]
[1680607796923,20.0,20.877,20.862,17.0]
[1680607798731,20.0,20.877,20.863,20.0]
[1680607798918,20.0,20.877,20.864,17.0]
[1680607799122,140.8781,20.878,20.864,44.24624739]
[1680607799333,140.8781,20.878,20.865,20.0]
[1680607799511,140.8781,20.878,20.866,17.0]
[1680607801034,140.8781,20.878,20.867,20.0]
[1680607801235,140.8781,20.878,20.868,17.0]
[1680607801920,140.8781,20.878,20.864,20.0]
[1680607802130,140.8781,20.878,20.865,17.0]
[1680607802335,140.8781,20.878,20.866,20.0]
[1680607802660,140.8781,20.878,20.867,17.0]
[1680607803828,140.8781,20.878,20.868,20.0]
[1680607804030,140.8781,20.878,20.869,17.0]
[1680607804734,140.8781,20.878,20.87,20.0]
[1680607804937,27.28,20.878,20.871,17.0]
[1680607805438,27.28,20.878,20.872,20.0]
[1680607805816,27.28,20.878,20.873,20.0]
[1680607806017,27.28,20.878,20.874,20.0]
[1680607806636,27.28,20.878,20.87,27.37]
[1680607806838,27.28,20.878,20.868,20.0]
[1680607807920,27.28,20.878,20.86,75.89986389]
[1680607808234,27.28,20.878,20.862,109.0104]
[1680607809526,27.28,20.878,20.864,20.0]
[1680607809830,27.28,20.878,20.865,20.0]
[1680607810240,27.28,20.878,20.867,20.0]
[1680607810739,27.28,20.878,20.868,17.0]
[1680607810960,14.18776611,20.884,20.867,20.0]
[1680607811233,139.8756,20.888,20.867,20.0]
[1680607811426,37.0,20.887,20.868,17.0]
[1680607811733,20.0,20.886,20.868,17.0]
[1680607811933,37.0,20.885,20.868,17.0]
[1680607813526,17.0,20.885,20.868,17.0]
[1680607813831,17.0,20.887,20.869,20.0]
[1680607814057,20.0,20.886,20.87,17.0]
[1680607815733,20.0,20.886,20.871,27.24624739]
[1680607815938,20.0,20.887,20.872,17.0]
[1680607816343,119.8756,20.888,20.873,20.0]
[1680607816528,119.8756,20.888,20.874,17.0]
[1680607816926,119.8756,20.888,20.874,24.24624739]
[1680607817153,119.8756,20.888,20.875,7.24624739]
[1680607817354,119.8756,20.888,20.877,20.0]
[1680607817540,119.8756,20.888,20.878,17.0]
[1680607820828,119.8756,20.888,20.877,20.0]
[1680607821033,119.8756,20.888,20.878,17.0]
[1680607822756,14.24521083,20.899,20.878,17.0]
[1680607822933,116.824,20.9,20.88,54.71]
[1680607823134,116.824,20.9,20.881,17.0]
[1680607823334,116.824,20.9,20.882,20.0]
[1680607823638,116.824,20.9,20.884,20.0]
[1680607823863,116.824,20.9,20.885,17.0]
[1680607824840,17.0,20.899,20.882,20.0]
[1680607825050,17.0,20.899,20.884,20.0]
[1680607825347,17.0,20.899,20.883,17.0]
[1680607825551,17.0,20.899,20.881,20.0]
[1680607825552,17.0,20.899,20.884,20.0]
[1680607825934,116.824,20.9,20.883,20.0]
[1680607826134,116.824,20.9,20.884,17.0]
[1680607826331,116.824,20.9,20.88,73.866]
[1680607826332,23.72646883,20.899,20.88,73.866]
[1680607826552,20.0,20.887,20.881,17.0]
[1680607826934,20.0,20.887,20.88,46.526]
[1680607827136,20.0,20.887,20.88,40.92]
[1680607827845,20.0,20.887,20.878,119.974]
[1680607828042,20.0,20.887,20.876,19.16]
[1680607828436,20.0,20.887,20.877,20.0]
[1680607828644,20.0,20.887,20.871,216.1028674]
[1680607828645,20.0,20.886,20.871,136.3613]
[1680607829444,20.0,20.886,20.872,20.0]
[1680607829636,20.0,20.887,20.872,27.24624739]
[1680607829840,20.0,20.887,20.873,37.0]
[1680607830142,20.0,20.887,20.873,44.24624739]
[1680607830332,20.0,20.887,20.874,7.24624739]
[1680607830535,20.0,20.887,20.876,20.0]
[1680607830935,20.0,20.887,20.877,17.0]
[1680607831359,20.0,20.887,20.88,40.67]
[1680607831745,20.0,20.887,20.881,17.0]
[1680607834944,20.0,20.887,20.883,20.0]
[1680607835254,20.0,20.887,20.884,24.24624739]
[1680607835847,20.0,20.887,20.885,20.0]
[1680607836152,20.0,20.887,20.886,17.0]
[1680607836552,20.0,20.887,20.885,17.0]
[1680607836858,20.0,20.887,20.883,17.0]
[1680607837059,20.0,20.887,20.884,20.0]
[1680607837259,20.0,20.887,20.885,17.0]
[1680607838364,116.824,20.9,20.886,39.151]
[1680607838553,116.824,20.9,20.887,17.0]
[1680607839351,116.824,20.9,20.886,39.151]
[1680607839556,116.824,20.9,20.887,17.0]
[1680607840354,116.824,20.9,20.888,20.0]
[1680607840559,116.824,20.9,20.889,17.0]
[1680607843463,116.824,20.9,20.89,20.0]
[1680607843664,116.824,20.9,20.891,17.0]
[1680607843864,116.824,20.9,20.889,17.0]
[1680607844247,116.824,20.9,20.891,20.0]
[1680607844451,116.824,20.9,20.892,17.0]
[1680607845566,116.824,20.9,20.891,17.0]
[1680607846162,116.824,20.9,20.892,20.0]
[1680607846469,116.824,20.9,20.893,17.0]
[1680607847265,116.824,20.9,20.892,20.0]
[1680607847462,116.824,20.9,20.893,17.0]
[1680607847662,116.5184,20.911,20.893,36.144]
[1680607848069,20.0,20.91,20.893,36.144]
[1680607848275,20.0,20.909,20.894,20.0]
[1680607848469,20.0,20.908,20.895,17.0]
[1680607848869,20.0,20.908,20.894,17.0]
[1680607849570,40.0,20.91,20.894,17.0]
[1680607850074,40.0,20.91,20.891,20.0]
[1680607851261,116.5184,20.911,20.892,20.0]
[1680607851580,116.5184,20.911,20.892,46.39124739]
[1680607851766,116.5184,20.911,20.894,20.0]
[1680607852083,116.5184,20.911,20.895,24.24624739]
[1680607852579,116.5184,20.911,20.896,7.24624739]
[1680607852758,20.0,20.907,20.897,17.0]
[1680607853155,20.0,20.907,20.898,20.0]
[1680607853362,20.0,20.907,20.899,17.0]
[1680607854162,20.0,20.907,20.901,20.0]
[1680607854357,14.68321437,20.927,20.902,17.0]
[1680607854562,123.06791437,20.927,20.903,20.0]
[1680607854760,123.06791437,20.927,20.904,17.0]
[1680607854967,20.0,20.926,20.905,20.0]
[1680607855155,20.0,20.926,20.906,17.0]
[1680607855359,20.0,20.926,20.906,24.24624739]
[1680607856762,20.0,20.926,20.906,17.0]
[1680607856962,20.0,20.926,20.905,17.0]
[1680607857263,20.0,20.921,20.905,17.0]
[1680607857980,20.0,20.926,20.905,17.0]
[1680607859174,20.0,20.926,20.906,20.0]
[1680607859480,20.0,20.926,20.907,17.0]
[1680607859867,20.0,20.926,20.906,17.0]
[1680607860586,108.3847,20.927,20.906,24.24624739]
[1680607860972,20.0,20.926,20.909,19.13]
[1680607861171,40.0,20.926,20.91,17.0]
[1680607861682,20.0,20.926,20.91,17.0]
[1680607861888,20.0,20.926,20.906,7.24624739]
[1680607862066,20.0,20.925,20.903,20.0]
[1680607862270,20.0,20.925,20.902,20.0]
[1680607862465,20.0,20.925,20.903,7.24624739]
[1680607862683,20.0,20.925,20.904,20.0]
[1680607862877,20.0,20.925,20.902,20.0]
[1680607863083,20.0,20.925,20.903,20.0]
[1680607863485,20.0,20.925,20.905,19.134]
[1680607863814,108.3847,20.927,20.91,40.92]
[1680607863992,108.3847,20.927,20.911,20.0]
[1680607864291,108.3847,20.927,20.912,37.0]
[1680607864591,108.3847,20.927,20.913,20.0]
[1680607864768,108.3847,20.927,20.914,17.0]
[1680607864972,108.3847,20.927,20.914,24.24624739]
[1680607865180,108.3847,20.927,20.915,20.0]
[1680607865373,108.3847,20.927,20.916,17.0]
[1680607865574,108.3847,20.927,20.916,24.24624739]
[1680607865878,108.3847,20.927,20.917,7.24624739]
[1680607866073,108.3847,20.927,20.919,20.0]
[1680607866477,108.3847,20.927,20.92,17.0]
[1680607866915,108.3847,20.927,20.918,17.0]
[1680607867287,108.3847,20.927,20.913,27.24624739]
[1680607867483,108.3847,20.927,20.914,17.0]